bitfinex/quotes_ETHUSD_20250425
["timestamp","ask_amount","ask_price","bid_price","bid_amount"]
[1745544663985,5.65855765,1767.3,1767.0,0.7813]
[1745544664145,10.78724102,1767.4,1767.0,0.7813]
[1745544664545,5.65838441,1767.3,1767.0,0.7813]
[1745544664967,10.78713662,1767.4,1767.0,6.44049797]
[1745544665357,10.78713662,1767.4,1767.0,7.65048633]
[1745544665557,0.8194,1767.9,1767.2,6.44892256]
[1745544665756,5.65739307,1767.6,1767.2,6.44886964]
[1745544666377,11.60491575,1767.9,1767.4,6.45396985]
[1745544666378,5.65692632,1767.8,1767.4,6.45396985]
[1745544666781,5.65707242,1767.7,1767.4,0.7961]
[1745544667280,5.6574251,1767.6,1767.4,0.7961]
[1745544667480,5.65730894,1767.7,1767.4,0.7961]
[1745544667852,5.65692702,1767.8,1767.4,0.7961]
[1745544668183,5.65749716,1767.6,1767.4,0.7961]
[1745544668392,5.65723091,1767.7,1767.4,0.7961]
[1745544669181,5.65764969,1767.6,1767.4,0.7961]
[1745544669379,5.65764969,1767.6,1767.2,0.56589625]
[1745544669380,5.6581855,1767.4,1767.1,0.784]
[1745544670404,5.65745906,1767.6,1767.2,5.65849823]
[1745544670600,5.65817151,1767.4,1767.1,0.784]
[1745544671272,11.31579603,1767.5,1767.1,0.784]
[1745544671473,5.65806728,1767.4,1767.1,0.784]
[1745544672960,5.65792451,1767.5,1767.1,0.784]
[1745544673167,0.82,1767.8,1767.1,0.784]
[1745544674304,0.72290107,1767.8,1767.1,0.784]
[1745544674493,0.31474691,1767.8,1767.2,0.76711068]
[1745544674803,0.31474691,1767.8,1767.3,0.7853]
[1745544675306,0.31474691,1767.8,1767.5,0.7853]
[1745544675458,0.31474691,1767.8,1767.6,0.5658]
[1745544675663,5.125,1768.2,1767.5,0.7853]
[1745544675883,5.66897469,1768.2,1767.5,0.7853]
[1745544677800,5.125,1768.2,1767.5,0.7853]
[1745544677981,0.31474691,1768.3,1768.1,0.7537]
[1745544678621,0.31474691,1768.9,1768.1,0.7537]
[1745544679290,0.8587216,1768.9,1768.1,0.7537]
[1745544679719,0.54397469,1768.9,1768.3,0.8279]
[1745544680034,0.7861,1768.8,1768.3,0.8279]
[1745544680523,0.7861,1768.8,1768.1,0.8298]
[1745544683729,3.8587216,1768.9,1768.1,0.8298]
[1745544683933,0.38587216,1768.8,1768.1,0.8298]
[1745544684793,0.38587216,1768.8,1768.2,0.76711068]
[1745544685129,0.54397469,1768.9,1768.3,0.7768]
[1745544685499,0.54397469,1768.9,1768.4,0.76711068]
[1745544685830,0.54397469,1768.9,1768.5,0.7768]
[1745544686032,5.123,1769.1,1768.5,0.7768]
[1745544686190,5.123,1769.1,1768.6,0.76711068]
[1745544686400,5.123,1769.1,1768.5,0.7768]
[1745544686821,16.973,1769.2,1768.5,0.7768]
[1745544687051,23.8694,1769.2,1768.5,0.7768]
[1745544689327,5.123,1769.1,1768.5,0.7768]
[1745544690211,5.436841,1769.1,1768.5,0.7768]
[1745544690936,0.8028,1769.0,1768.5,0.7768]
[1745544692441,3.8028,1769.0,1768.5,0.7768]
[1745544692609,0.38028,1768.9,1768.0,0.7798]
[1745544693838,1.116641,1769.0,1768.0,0.7798]
[1745544694139,0.313841,1769.0,1768.0,0.7798]
[1745544694737,3.313841,1769.0,1768.0,0.7798]
[1745544696202,5.9425,1768.9,1768.0,0.7798]
[1745544696709,3.0,1768.8,1768.0,0.7798]
[1745544696916,0.3,1768.7,1768.0,0.7798]
[1745544698417,0.313841,1768.8,1768.0,0.7798]
[1745544698822,5.122,1768.9,1768.1,3.0]
[1745544699104,5.122,1768.9,1768.2,0.8181]
[1745544701041,5.43695487,1768.9,1768.2,0.8181]
[1745544701240,0.54369549,1768.8,1768.2,0.8181]
[1745544702053,5.43695487,1768.9,1768.2,0.8181]
[1745544702410,0.31495487,1768.9,1768.3,0.7909]
[1745544702605,0.31495487,1769.1,1768.4,5.122]
[1745544702836,0.31495487,1769.1,1768.5,0.7909]
[1745544703404,3.31495487,1769.3,1768.5,0.7909]
[1745544703607,4.20005531,1769.3,1768.5,0.7909]
[1745544704443,0.31495487,1769.2,1768.5,0.7909]
[1745544706243,0.31495487,1769.1,1768.5,0.7909]
[1745544707347,0.31495487,1769.0,1768.5,0.7909]
[1745544708212,0.31495487,1769.2,1768.5,0.7909]
[1745544709149,0.31495487,1769.2,1768.9,3.68273799]
[1745544709348,16.963,1770.0,1769.1,0.7678]
[1745544709349,5.43395487,1769.7,1769.1,0.7678]
[1745544709725,3.0,1769.6,1769.1,0.7678]
[1745544710132,3.31495487,1769.6,1769.1,0.7678]
[1745544710328,0.33149549,1769.5,1769.1,0.7678]
[1745544711249,0.7758,1769.4,1768.9,0.8021]
[1745544711454,8.119,1769.3,1768.9,0.8021]
[1745544712455,0.31495487,1769.2,1768.9,0.8021]
[1745544712755,1.15835036,1769.2,1768.9,0.8021]
[1745544715122,0.31495487,1769.2,1768.9,0.8021]
[1745544716055,5.119,1769.3,1768.9,0.8021]
[1745544721661,5.119,1769.3,1768.9,0.7668785]
[1745544721963,0.31495487,1769.5,1769.0,0.823]
[1745544722462,3.0,1769.5,1769.0,0.823]
[1745544722759,5.43295487,1769.6,1769.0,0.823]
[1745544724355,1.25851881,1770.0,1769.1,0.7668785]
[1745544724520,5.118,1769.9,1769.3,0.7668785]
[1745544724723,5.118,1770.3,1769.6,0.7585]
[1745544724919,5.6298,1770.3,1769.6,0.7585]
[1745544725340,3.0,1770.2,1769.6,0.7585]
[1745544725543,5.6298,1770.3,1769.6,0.7585]
[1745544725768,3.0,1770.2,1769.6,0.7585]
[1745544726663,3.3154888,1770.2,1769.6,0.7585]
[1745544727468,4.21001768,1770.2,1769.6,0.7585]
[1745544728465,3.3154888,1770.2,1769.6,0.7585]
[1745544728771,0.3154888,1770.2,1769.8,0.7716]
[1745544729468,3.0,1770.5,1769.8,0.7716]
[1745544730529,3.3154888,1770.5,1769.8,0.7716]
[1745544731066,4.15873768,1770.5,1769.8,0.7716]
[1745544731565,3.0,1770.4,1769.8,0.7716]
[1745544732167,5.116,1770.5,1769.8,0.7716]
[1745544732371,5.116,1770.5,1770.0,0.8192]
[1745544732867,5.9276,1770.5,1770.0,0.8192]
[1745544733234,5.116,1770.5,1770.0,0.8192]
[1745544733864,3.0,1770.4,1770.0,0.8192]
[1745544734784,0.7997,1770.3,1769.9,0.8169]
[1745544735068,0.7997,1769.9,1769.5,0.8169]
[1745544735231,5.9127,1769.9,1769.5,0.8169]
[1745544735431,5.113,1769.9,1769.5,0.8169]
[1745544735662,3.0,1769.8,1769.5,0.8169]
[1745544735891,3.0,1769.8,1769.3,0.8169]
[1745544735892,0.7668785,1769.7,1769.3,0.8169]
[1745544736077,0.3,1769.7,1769.3,0.8169]
[1745544739631,3.31416595,1769.8,1769.3,0.8169]
[1745544740358,3.0,1769.8,1769.3,0.8169]
[1745544740560,5.113,1769.9,1769.4,0.7776]
[1745544741175,5.113,1769.9,1769.5,0.7776]
[1745544742202,5.113,1769.9,1769.6,0.7695]
[1745544742401,0.37668785,1770.3,1769.6,0.7695]
[1745544742601,5.48968785,1770.3,1769.6,0.7695]
[1745544742788,3.54896879,1770.2,1769.6,0.7695]
[1745544745109,0.75,1770.1,1769.6,0.7695]
[1745544745302,1.5168785,1770.1,1769.6,0.7695]
[1745544747148,0.75,1770.1,1769.6,0.7695]
[1745544748297,3.86358406,1770.2,1769.6,0.7695]
[1745544748511,0.38635841,1770.1,1769.6,0.7695]
[1745544752990,0.86358406,1770.2,1769.6,0.7695]
[1745544753195,0.31461527,1770.2,1769.6,0.7695]
[1745544753409,0.31461527,1770.2,1769.7,0.7921]
[1745544753611,3.31461527,1770.2,1769.7,0.7921]
[1745544756514,0.31461527,1770.2,1769.7,0.7921]
[1745544756720,5.42761527,1770.3,1769.7,0.7921]
[1745544757406,5.113,1770.3,1769.7,0.7921]
[1745544757621,0.57704499,1771.2,1770.3,3.62379933]
[1745544757925,1.5739785,1771.7,1770.9,0.8202]
[1745544758127,2.27073321,1771.2,1770.9,0.8202]
[1745544758288,3.0,1771.6,1770.9,0.8202]
[1745544758289,0.7668785,1771.3,1770.9,0.8202]
[1745544758499,0.3155933,1771.4,1770.9,0.8202]
[1745544759120,2.05333994,1771.4,1770.9,0.8202]
[1745544759327,3.0,1771.3,1770.9,0.8202]
[1745544759715,7.16633994,1771.4,1770.9,0.8202]
[1745544760799,5.113,1771.4,1770.9,0.8202]
[1745544761461,5.9243,1771.4,1770.9,0.8202]
[1745544762803,5.113,1771.4,1770.9,0.8202]
[1745544763248,5.108,1771.7,1770.9,0.8202]
[1745544763944,3.0,1771.6,1770.9,0.8202]
[1745544765644,3.7668785,1771.6,1770.9,0.8202]
[1745544765856,1.17508785,1771.5,1770.9,0.8202]
[1745544768121,0.37668785,1771.5,1770.9,0.8202]
[1745544776337,3.0,1771.5,1770.9,0.8202]
[1745544777665,5.106,1772.1,1771.0,0.7699]
[1745544777962,0.7668785,1771.7,1771.0,0.7699]
[1745544779236,1.14356635,1771.7,1771.0,0.7699]
[1745544780930,0.7668785,1771.5,1771.0,0.7699]
[1745544782948,3.0,1771.4,1771.0,0.7699]
[1745544783744,5.106,1771.5,1771.0,0.7699]
[1745544784138,5.8728785,1771.5,1771.0,0.7699]
[1745544784341,6.6788785,1771.5,1771.0,0.7699]
[1745544784538,0.58728785,1771.4,1771.0,0.7699]
[1745544785280,5.8728785,1771.5,1771.0,0.7699]
[1745544785479,5.106,1771.5,1771.0,0.7699]
[1745544786866,0.31533719,1771.6,1771.0,0.7668785]
[1745544787065,0.31533719,1771.6,1771.1,0.7985]
[1745544787435,0.31533719,1771.7,1771.1,0.7985]
[1745544789368,3.31533719,1771.8,1771.1,0.7985]
[1745544789758,3.0,1771.7,1771.2,0.7615]
[1745544790190,0.7668785,1771.7,1771.2,0.7615]
[1745544790663,1.08221569,1771.7,1771.2,0.7615]
[1745544791388,0.31533719,1771.6,1771.2,0.7615]
[1745544794698,0.31533719,1771.5,1771.2,0.7615]
[1745544795593,1.08221569,1771.5,1771.2,0.7615]
[1745544795793,0.31533719,1771.4,1770.8,0.7965]
[1745544796391,0.31533719,1771.4,1770.8,0.58995]
[1745544796571,0.31533719,1771.4,1770.9,0.8125]
[1745544800076,0.31533719,1771.5,1770.9,0.8125]
[1745544801002,0.8202,1771.4,1770.9,0.8125]
[1745544801499,3.0,1771.2,1770.5,0.7815]
[1745544801662,1.5870785,1771.1,1770.5,0.7815]
[1745544802595,0.31533719,1771.0,1770.5,0.7815]
[1745544803704,1.90241569,1771.1,1770.5,0.7815]
[1745544804904,0.7668785,1770.7,1770.1,0.7779]
[1745544805208,5.8925,1770.6,1770.1,0.7779]
[1745544805368,6.55843785,1770.6,1770.1,0.7779]
[1745544805867,0.7668785,1770.5,1770.1,0.7779]
[1745544806096,3.31533719,1770.5,1770.1,0.7779]
[1745544807245,3.0,1770.5,1770.1,0.7779]
[1745544809730,3.0,1770.5,1769.7,0.8029]
[1745544810006,4.03253164,1770.5,1769.7,0.8029]
[1745544811408,3.0,1770.5,1769.7,0.8029]
[1745544814935,0.7793,1770.4,1769.7,0.8029]
[1745544821636,0.7793,1770.4,1769.8,0.7668785]
[1745544822628,0.7793,1770.4,1769.7,0.8029]
[1745544828964,0.7793,1770.4,1769.6,0.7941]
[1745544829460,0.7793,1770.4,1770.1,0.01629827]
[1745544829803,3.31471234,1770.5,1770.1,0.01629827]
[1745544829968,1.14757123,1770.4,1770.1,0.01629827]
[1745544832530,0.8161,1770.4,1770.1,0.01629827]
[1745544834572,0.31471234,1770.3,1770.1,0.01629827]
[1745544836135,0.8277,1770.2,1770.1,0.01629827]
[1745544836743,1.14241234,1770.2,1770.1,0.01629827]
[1745544837640,0.8277,1770.2,1770.1,0.01629827]
[1745544839590,1.14241234,1770.2,1770.1,0.01629827]
[1745544839953,0.31471234,1770.2,1770.1,0.01629827]
[1745544840785,0.31471234,1770.3,1770.1,0.01629827]
[1745544841571,1.08431234,1770.4,1770.1,0.01629827]
[1745544843715,1.49274357,1770.4,1770.1,0.01629827]
[1745544844094,0.31471234,1770.3,1770.1,0.01629827]
[1745544844493,0.31471234,1770.3,1769.8,0.7602]
[1745544847795,0.31471234,1770.4,1769.8,0.7602]
[1745544848825,1.07051234,1770.5,1769.8,0.7602]
[1745544849524,0.31471234,1770.4,1769.8,0.7602]
[1745544849841,0.31471234,1770.4,1769.8,3.0]
[1745544850119,0.31471234,1770.4,1770.0,0.7753]
[1745544850516,6.17451234,1770.6,1770.0,0.7753]
[1745544852133,5.41871234,1770.6,1770.0,0.7753]
[1745544852702,0.31471234,1770.7,1770.0,0.7753]
[1745544852902,0.31471234,1770.7,1769.9,1.0668785]
[1745544852903,0.31471234,1770.7,1770.4,0.7828]
[1745544854221,0.31471234,1771.1,1770.4,0.7828]
[1745544854530,1.01545142,1771.1,1770.4,0.7828]
[1745544854737,0.31471234,1771.1,1770.5,0.7668785]
[1745544854937,0.31471234,1771.1,1770.7,0.7668785]
[1745544855248,0.31471234,1771.1,1770.8,0.7728]
[1745544855594,0.8103,1771.4,1770.8,0.7728]
[1745544855799,1.43320123,1771.4,1770.8,0.7728]
[1745544856523,2.20007973,1771.4,1770.8,0.7728]
[1745544856849,0.823,1771.3,1770.6,0.7809]
[1745544865064,0.7668785,1770.8,1770.4,0.7502]
[1745544865432,5.099,1771.0,1770.4,0.7502]
[1745544865652,5.68731,1771.0,1770.4,0.7502]
[1745544865959,5.099,1771.0,1770.4,0.7502]
[1745544870772,1.5499785,1771.2,1770.4,0.7502]
[1745544871131,0.7831,1771.2,1770.4,0.7502]
[1745544871843,1.5499785,1771.2,1770.4,0.7502]
[1745544874664,1.86506156,1771.2,1770.4,0.7502]
[1745544876766,5.56146772,1771.2,1770.4,0.7502]
[1745544879746,0.7668785,1771.0,1770.4,0.7502]
[1745544880146,3.0,1771.1,1770.4,0.7502]
[1745544880147,3.31508306,1771.1,1770.4,0.7502]
[1745544880976,1.5867785,1771.0,1770.4,0.7502]
[1745544881179,0.7668785,1770.8,1770.4,0.7502]
[1745544883072,1.08196156,1770.8,1770.4,0.7502]
[1745544883473,4.08196156,1770.8,1770.4,0.7502]
[1745544883672,0.40819616,1770.7,1770.4,0.7502]
[1745544883886,1.20079616,1770.7,1770.2,0.8024]
[1745544890470,1.51587922,1770.7,1770.2,0.8024]
[1745544891506,1.20079616,1770.7,1770.2,0.8024]
[1745544896683,0.40819616,1770.7,1770.2,0.8024]
[1745544898580,0.31508306,1770.8,1770.2,0.8024]
[1745544898910,3.31508306,1770.8,1770.2,0.8024]
[1745544900516,0.31508306,1770.8,1770.2,0.8024]
[1745544901009,5.41408306,1770.9,1770.2,0.8024]
[1745544901799,5.099,1770.9,1770.2,0.8024]
[1745544903632,6.3757785,1770.9,1770.2,0.8024]
[1745544903823,0.31508306,1770.8,1770.2,0.8024]
[1745544904336,0.31508306,1770.8,1770.3,0.7668785]
[1745544904539,0.31508306,1770.8,1770.4,0.8001]
[1745544904906,3.31508306,1771.1,1770.4,0.8001]
[1745544905236,4.23287922,1771.1,1770.4,0.8001]
[1745544906034,4.23287922,1771.1,1770.5,0.8001]
[1745544906334,0.31508306,1771.1,1770.5,0.8001]
[1745544906652,5.096,1771.2,1770.6,0.8001]
[1745544907097,5.41108306,1771.2,1770.6,0.8001]
[1745544908841,5.096,1771.2,1770.6,0.8001]
[1745544910246,5.411277,1771.2,1770.6,0.8001]
[1745544910745,7.0192832,1771.2,1770.6,0.8001]
[1745544910945,7.8161832,1771.2,1770.6,0.8001]
[1745544911121,7.80691217,1771.2,1770.6,0.8001]
[1745544911642,0.315277,1771.1,1770.6,0.8001]
[1745544912012,0.7668785,1771.0,1770.6,0.8001]
[1745544912404,1.17509405,1771.0,1770.6,0.8001]
[1745544915615,3.73746747,1771.1,1770.6,0.8001]
[1745544916313,3.315277,1771.1,1770.6,0.8001]
[1745544918556,0.315277,1771.1,1770.6,0.8001]
[1745544918939,5.08672897,1771.2,1770.6,0.8001]
[1745544919826,0.62290123,1771.4,1770.6,0.8001]
[1745544920652,0.93806916,1771.4,1770.6,0.8001]
[1745544925946,0.7668785,1771.3,1770.6,0.8001]
[1745544926757,1.08204643,1771.3,1770.6,0.8001]
[1745544926928,0.7668785,1771.1,1770.7,0.8177]
[1745544929064,3.31516793,1771.2,1770.7,0.8177]
[1745544929967,0.31516793,1771.2,1770.7,0.8177]
[1745544931242,5.40616793,1771.3,1770.7,0.8177]
[1745544931772,5.40616793,1771.3,1770.8,0.32669819]
[1745544931982,5.40616793,1771.3,1770.9,0.7541]
[1745544931983,0.31516793,1771.3,1770.9,0.7541]
[1745544932488,0.31516793,1771.3,1771.1,0.754]
[1745544932775,0.31516793,1771.5,1771.2,1.07041533]
[1745544933135,0.31516793,1771.5,1771.2,0.754]
[1745544938043,8.091,1771.6,1771.2,0.754]
[1745544939002,5.091,1771.6,1771.2,0.754]
[1745544939196,5.091,1771.6,1771.3,0.313479]
[1745544939404,5.091,1771.6,1771.4,0.7756]
[1745544939764,5.091,1771.6,1771.5,0.31275055]
[1745544939961,5.091,1771.6,1771.4,0.7756]
[1745544940196,5.091,1771.6,1771.5,0.31275055]
[1745544940406,5.091,1771.6,1771.4,0.7756]
[1745544941106,0.31548704,1771.7,1771.4,0.7756]
[1745544941310,0.31548704,1771.7,1771.5,0.31294057]
[1745544941606,4.08236554,1771.9,1771.5,0.31294057]
[1745544941995,4.08236554,1771.9,1771.4,0.7756]
[1745544942189,6.77388209,1771.9,1771.4,0.7756]
[1745544942395,0.7668785,1771.7,1771.4,0.7756]
[1745544945701,0.7668785,1771.7,1771.1,0.8134]
[1745544945914,0.7668785,1771.7,1771.2,0.31452733]
[1745544946207,0.7668785,1771.7,1771.3,0.7585]
[1745544946412,0.7668785,1771.7,1771.3,1.07228961]
[1745544946703,0.7668785,1771.7,1771.4,0.31338735]
[1745544946907,0.31548704,1771.8,1771.5,0.8134]
[1745544947203,0.99287525,1771.8,1771.5,0.8134]
[1745544948565,0.31548704,1771.8,1771.5,0.8134]
[1745544948971,0.31548704,1771.9,1771.7,0.8134]
[1745544950001,5.09,1772.0,1771.7,0.8134]
[1745544951404,1.5788785,1771.9,1771.1,0.7518]
[1745544951611,4.5788785,1771.9,1771.1,0.7518]
[1745544951815,5.54576635,1771.9,1771.3,0.7518]
[1745544952107,5.86125339,1771.9,1771.4,0.27684319]
[1745544952810,0.7668785,1771.7,1771.4,0.27684319]
[1745544953305,1.5831785,1771.7,1771.4,0.27684319]
[1745544956486,1.5831785,1771.7,1771.2,0.8132]
[1745544956687,1.5831785,1771.7,1771.5,0.27715097]
[1745544956915,1.89866554,1771.7,1771.2,0.8132]
[1745544957294,1.89866554,1771.7,1771.3,0.27795539]
[1745544957500,1.5831785,1771.7,1771.3,0.27795539]
[1745544957810,1.5631785,1771.4,1771.3,0.27795539]
[1745544958314,1.5631785,1771.4,1770.9,0.8143]
[1745544958476,0.7718,1771.1,1770.7,0.8113]
[1745544958817,0.7668785,1771.0,1770.4,0.8113]
[1745544959003,0.7668785,1771.0,1770.8,0.23709914]
[1745544959311,0.7668785,1771.0,1770.4,1.40093]
[1745544959474,0.7668785,1771.0,1770.9,0.21643152]
[1745544959675,0.7718,1770.9,1770.4,0.8113]
[1745544959878,0.7668785,1770.8,1770.4,0.8113]
[1745544960110,5.8518785,1770.8,1770.5,0.21697682]
[1745544960490,5.085,1770.8,1770.5,0.21697682]
[1745544964835,5.8578,1771.1,1770.6,0.7546]
[1745544965352,5.086,1771.1,1770.6,0.7546]
[1745544965522,5.086,1771.4,1770.6,0.7546]
[1745544965691,7.1712873,1771.4,1770.7,1.00976453]
[1745544965890,8.40109945,1771.4,1770.7,1.00976453]
[1745544966303,8.40109945,1771.4,1770.8,0.8269]
[1745544966504,8.086,1771.4,1770.8,0.8269]
[1745544966713,10.74057785,1771.4,1770.8,0.8269]
[1745544970446,5.086,1771.4,1771.0,0.8284]
[1745544971033,5.086,1771.4,1771.1,0.21785396]
[1745544972051,5.086,1771.4,1771.2,0.8284]
[1745544972253,5.086,1771.7,1771.2,0.8284]
[1745544972458,5.93742375,1771.7,1771.2,0.8284]
[1745544972944,5.086,1771.7,1771.4,0.8284]
[1745544973372,3.0,1771.9,1771.5,0.21557849]
[1745544973848,3.7668785,1771.9,1771.4,0.8284]
[1745544974009,4.08251736,1771.9,1771.4,0.8284]
[1745544974214,5.0791091,1771.9,1771.5,0.21656654]
[1745544974426,5.0791091,1771.9,1771.4,0.8284]
[1745544974626,5.0791091,1771.9,1771.6,0.21517635]
[1745544974825,5.0791091,1771.9,1771.4,0.8284]
[1745544975243,4.08251736,1771.9,1771.5,0.21557849]
[1745544975648,3.7668785,1771.9,1771.4,0.8284]
[1745544975833,3.7668785,1771.9,1771.6,0.21517635]
[1745544976032,3.7668785,1771.9,1771.4,0.8284]
[1745544976230,3.7668785,1771.9,1771.7,0.21477425]
[1745544976640,3.7668785,1771.9,1771.4,0.8284]
[1745544976841,3.7668785,1771.9,1771.8,0.2143722]
[1745544977144,3.7668785,1771.9,1771.4,0.8284]
[1745544977547,3.7668785,1771.9,1771.5,0.21557849]
[1745544978134,3.7668785,1771.9,1771.4,0.8284]
[1745544978556,3.7668785,1771.9,1771.5,0.21557849]
[1745544978861,3.7668785,1771.9,1771.4,0.8284]
[1745544978862,5.8834,1772.0,1771.4,0.8284]
[1745544979065,5.40136527,1772.0,1771.6,0.21517635]
[1745544979633,5.40136527,1772.0,1771.7,0.8063]
[1745544979823,5.40136527,1772.0,1771.7,1.01601644]
[1745544980023,5.086,1772.0,1771.7,1.01601644]
[1745544980959,0.7668785,1772.1,1771.7,1.01601644]
[1745544981264,5.08,1772.1,1771.7,1.01601644]
[1745544981760,5.08,1772.1,1771.7,0.20971644]
[1745544981956,5.08,1772.1,1771.8,0.8171]
[1745544982360,5.08,1772.1,1771.9,0.21021959]
[1745544982540,5.08,1772.4,1772.0,0.8079]
[1745544983261,5.888,1772.4,1772.0,0.8079]
[1745544983457,6.6548785,1772.4,1772.0,0.8079]
[1745544983659,0.7668785,1772.2,1771.6,0.7623]
[1745544983960,0.7668785,1772.2,1772.1,0.2097196]
[1745544984163,0.7668785,1772.2,1771.6,0.7623]
[1745544984535,0.7668785,1772.2,1771.7,0.21102173]
[1745544984940,1.22542635,1772.2,1771.6,0.7623]
[1745544985261,0.8049,1772.1,1771.7,0.21109772]
[1745544985454,0.8049,1772.1,1771.6,0.7623]
[1745544985654,0.8049,1772.1,1771.8,0.21085486]
[1745544985857,0.8049,1772.1,1771.6,0.7623]
[1745544986158,0.8049,1772.1,1771.9,0.21091067]
[1745544986338,0.8049,1772.1,1771.6,0.7623]
[1745544986668,0.8049,1772.1,1771.7,0.2117148]
[1745544986829,0.8049,1772.1,1771.6,0.7623]
[1745544987024,4.90576989,1772.3,1771.8,0.21131271]
[1745544987329,1.13889139,1772.3,1771.9,0.7982]
[1745544987583,1.5460785,1772.4,1771.9,0.7982]
[1745544987766,0.7792,1772.4,1771.9,0.7982]
[1745544987935,0.7792,1772.4,1772.0,0.21050868]
[1745544988141,1.5460785,1772.4,1772.0,0.21050868]
[1745544988833,1.5460785,1772.4,1771.5,0.7982]
[1745544989050,1.5460785,1772.4,1771.6,0.7982]
[1745544989251,1.5460785,1772.4,1772.1,0.20902462]
[1745544989563,1.5460785,1772.4,1771.6,0.7982]
[1745544989762,1.5460785,1772.4,1772.2,0.20862272]
[1745544989943,1.5460785,1772.4,1771.9,0.8036]
[1745544990347,1.5460785,1772.4,1772.0,0.20942657]
[1745544990567,4.14356234,1772.6,1772.1,0.8261]
[1745544990880,3.829,1772.6,1772.2,0.20782525]
[1745544991047,4.5958785,1772.6,1772.1,0.8261]
[1745544991251,4.5958785,1772.6,1772.3,0.20742343]
[1745544991452,4.5958785,1772.6,1772.1,0.8261]
[1745544991855,4.5958785,1772.6,1772.2,0.20782525]
[1745544992166,4.5958785,1772.6,1772.1,0.8261]
[1745544992471,5.56336635,1772.6,1772.2,0.20782525]
[1745544992652,5.87809228,1772.6,1772.0,0.8083]
[1745544992852,4.91060443,1772.6,1772.3,0.20742343]
[1745544993175,4.91060443,1772.6,1772.0,0.8083]
[1745544993546,4.91060443,1772.6,1772.1,0.20523044]
[1745544993949,4.14372593,1772.6,1772.1,0.20523044]
[1745544994150,3.31472593,1772.6,1772.2,0.8083]
[1745544994756,3.0,1772.6,1772.2,0.8083]
[1745544994954,3.0,1772.6,1772.3,0.20412642]
[1745544995356,5.079,1772.7,1772.3,0.20412642]
[1745544996648,5.8458785,1772.7,1772.3,0.20412642]
[1745544996959,6.54510632,1772.7,1772.3,0.20412642]
[1745544997488,1.08609967,1772.6,1772.3,0.20412642]
[1745544997650,4.08609967,1772.6,1772.3,0.20412642]
[1745544997850,4.08609967,1772.6,1772.0,0.7667]
[1745544998063,4.08609967,1772.6,1772.4,0.20126093]
[1745544998350,5.14922027,1772.6,1772.0,0.7667]
[1745544998583,0.7668785,1772.5,1772.0,0.7667]
[1745544998750,0.7668785,1772.5,1772.1,0.2023903]
[1745544999047,4.08609967,1772.6,1772.1,0.2023903]
[1745545001676,0.7668785,1772.5,1772.1,0.2023903]
[1745545001879,0.8152,1772.4,1772.1,0.2023903]
[1745545002084,1.27340785,1772.4,1771.9,0.7724]
[1745545002384,1.27340785,1772.4,1772.2,0.20256356]
[1745545002592,0.8152,1772.4,1771.9,0.7724]
[1745545002950,1.5344785,1772.5,1772.0,0.2033672]
[1745545004088,1.84957817,1772.5,1772.0,0.2033672]
[1745545005187,1.5344785,1772.5,1772.0,0.2033672]
[1745545006254,1.84957817,1772.5,1772.0,0.2033672]
[1745545006455,2.33453599,1772.5,1772.0,0.2033672]
[1745545007159,0.31509967,1772.4,1772.0,0.2033672]
[1745545010197,3.31509967,1772.4,1772.0,0.2033672]
[1745545010423,3.31509967,1772.4,1772.1,0.8138]
[1745545010692,3.31509967,1772.4,1772.2,0.20353296]
[1745545012391,0.31509967,1772.4,1772.2,0.20353296]
[1745545012561,5.073,1772.5,1772.2,0.20353296]
[1745545013594,5.38809967,1772.5,1772.2,0.20353296]
[1745545015879,0.31509967,1772.4,1772.2,0.20353296]
[1745545018564,0.31509967,1772.3,1772.2,0.20353296]
[1745545019095,0.31509967,1772.3,1772.2,1.01193296]
[1745545019396,3.31509967,1772.7,1772.2,1.01193296]
[1745545019599,0.82239967,1772.7,1772.2,1.01193296]
[1745545019893,3.31509967,1772.7,1772.2,0.8084]
[1745545020115,0.31509967,1772.7,1772.2,0.8084]
[1745545020396,0.31509967,1772.6,1772.3,0.79991451]
[1745545020762,0.31509967,1772.6,1772.4,0.20332767]
[1745545020963,0.31509967,1772.7,1772.4,0.20332767]
[1745545021407,0.31509967,1772.7,1772.3,0.79991451]
[1745545021788,0.31509967,1772.7,1772.4,0.20332767]
[1745545022306,0.31509967,1772.7,1772.3,0.79991451]
[1745545022809,0.31509967,1772.7,1772.4,0.20176512]
[1745545023111,0.85390964,1772.7,1772.3,0.79991451]
[1745545023408,0.31509967,1772.6,1772.3,0.79991451]
[1745545023600,0.31509967,1772.6,1772.4,0.20176512]
[1745545024314,1.83437817,1772.6,1772.4,0.20176512]
[1745545024827,1.5192785,1772.6,1772.3,0.01001451]
[1745545024979,1.5192785,1772.6,1772.5,0.20144657]
[1745545025177,2.02508735,1772.6,1772.4,0.20184831]
[1745545025379,2.02508735,1772.6,1772.3,0.01001451]
[1745545025716,2.02508735,1772.6,1772.4,0.20184831]
[1745545026227,2.02508735,1772.6,1772.3,0.01001451]
[1745545026384,2.02508735,1772.6,1772.5,0.01001451]
[1745545027512,0.50580885,1772.6,1772.5,0.01001451]
[1745545027703,3.53880997,1772.7,1772.5,0.01001451]
[1745545028696,3.7668785,1772.9,1772.5,0.01001451]
[1745545031116,0.7668785,1772.9,1772.5,0.01001451]
[1745545031427,3.0,1772.8,1772.5,0.01001451]
[1745545032022,5.072,1772.9,1772.5,0.01001451]
[1745545033026,5.8388785,1772.9,1772.5,0.01001451]
[1745545033324,6.7216585,1772.9,1772.5,0.01001451]
[1745545033535,6.71497115,1772.9,1772.5,0.01001451]
[1745545035032,0.7942,1772.6,1772.5,0.01001451]
[1745545035388,0.7942,1772.6,1772.2,0.01001451]
[1745545035820,0.7942,1772.6,1772.3,0.1844267]
[1745545036138,5.8388785,1772.5,1772.2,0.01001451]
[1745545036342,9.50218635,1772.5,1772.4,0.16781193]
[1745545036532,9.50218635,1772.5,1772.2,0.01001451]
[1745545036704,9.50218635,1772.5,1772.4,0.1685607]
[1745545036904,9.50218635,1772.5,1772.2,0.01001451]